[Event "British Rapidplay Championship 2023"]
[Site "Mercure Bradford, Bankfield Hotel"]
[Date "2023.04.16"]
[Round "7.11"]
[White "Clark, Robert G"]
[Black "Ashton, Adam G"]
[Result "0-1"]
[TimeControl "15 minutes plus 10 seconds per move"]
[WhiteElo "2008"]
[BlackElo "2390"]

1. c4 {[%clk 00:15:18]} {[%emt 00:00:01]} e5 {[%clk 00:15:10]} {[%emt
00:00:10]} 2. g3 {[%clk 00:15:26]} {[%emt 00:00:02]} Nf6 {[%clk 00:15:19]}
{[%emt 00:00:02]} 3. Bg2 {[%clk 00:15:34]} {[%emt 00:00:02]} c6 {[%clk
00:15:27]} {[%emt 00:00:02]} 4. e3 {[%clk 00:14:25]} {[%emt 00:01:17]} d5
{[%clk 00:15:29]} {[%emt 00:00:09]} 5. Ne2 {[%clk 00:14:33]} {[%emt 00:00:02]}
dxc4 {[%clk 00:14:30]} {[%emt 00:01:09]} 6. a4 {[%clk 00:13:30]} {[%emt
00:01:13]} Na6 {[%clk 00:12:56]} {[%emt 00:01:45]} 7. O-O {[%clk 00:13:01]}
{[%emt 00:00:38]} Nb4 {[%emt 00:00:59]} 8. f4 {[%clk 00:11:16]} {[%emt
00:01:53]} Bd6 {[%clk 00:08:33]} {[%emt 00:03:46]} 9. Na3 {[%clk 00:10:13]}
{[%emt 00:01:14]} Be6 {[%clk 00:07:55]} {[%emt 00:00:48]} 10. fxe5 {[%clk
00:07:35]} {[%emt 00:02:47]} Bxe5 {[%clk 00:08:01]} {[%emt 00:00:04]} 11. Nf4
{[%clk 00:07:05]} {[%emt 00:00:40]} Bxf4 {[%clk 00:05:14]} {[%emt 00:02:58]} 12.
Rxf4 {[%clk 00:05:51]} {[%emt 00:01:23]} Nfd5 {[%clk 00:05:21]} {[%emt
00:00:03]} 13. Re4 {[%clk 00:04:37]} {[%emt 00:01:24]} O-O {[%clk 00:05:04]}
{[%emt 00:00:27]} 14. Qf1 {[%clk 00:03:30]} {[%emt 00:01:18]} Qd7 {[%clk
00:03:16]} {[%emt 00:01:58]} 15. Rxc4 {[%clk 00:01:29]} {[%emt 00:02:12]} a5
{[%clk 00:03:09]} {[%emt 00:00:16]} 16. Rd4 {[%clk 00:01:19]} {[%emt 00:00:19]}
c5 {[%clk 00:03:07]} {[%emt 00:00:12]} 17. Rh4 {[%clk 00:01:02]} {[%emt
00:00:27]} Ne7 {[%clk 00:02:42]} {[%emt 00:00:35]} 18. d4 {[%clk 00:00:47]}
{[%emt 00:00:26]} Ng6 {[%clk 00:02:43]} {[%emt 00:00:09]} 19. Rh5 {[%clk
00:00:23]} {[%emt 00:00:34]} cxd4 {[%clk 00:02:47]} {[%emt 00:00:07]} 20. exd4
{[%clk 00:00:27]} {[%emt 00:00:06]} Qxd4+ {[%clk 00:02:47]} {[%emt 00:00:09]}
21. Qf2 {[%clk 00:00:35]} {[%emt 00:00:02]} Qd1+ {[%clk 00:02:49]} {[%emt
00:00:08]} 22. Qf1 {[%clk 00:00:32]} {[%emt 00:00:13]} Qxh5 {[%clk 00:02:54]}
{[%emt 00:00:04]} 0-1

[Event "British Rapidplay Championship 2023"]
[Site "Mercure Bradford, Bankfield Hotel"]
[Date "2023.04.16"]
[Round "7.13"]
[White "Shaw, Peter"]
[Black "McCarthy, Damian M"]
[Result "0-1"]
[TimeControl "15 minutes plus 10 seconds per move"]
[WhiteElo "2231"]
[BlackElo "1860"]

1. d4 {[%clk 00:15:17]} {[%emt 00:00:02]} Nf6 {[%clk 00:15:17]} {[%emt
00:00:03]} 2. c4 {[%clk 00:15:25]} {[%emt 00:00:03]} e6 {[%clk 00:15:24]}
{[%emt 00:00:03]} 3. Nf3 {[%clk 00:15:33]} {[%emt 00:00:02]} Bb4+ {[%clk
00:15:31]} {[%emt 00:00:03]} 4. Nbd2 {[%clk 00:15:40]} {[%emt 00:00:03]} b6
{[%clk 00:15:31]} {[%emt 00:00:11]} 5. a3 {[%clk 00:15:31]} {[%emt 00:00:20]}
Bxd2+ {[%clk 00:15:37]} {[%emt 00:00:03]} 6. Qxd2 {[%clk 00:15:18]} {[%emt
00:00:23]} a5 {[%clk 00:15:25]} {[%emt 00:00:22]} 7. b3 {[%clk 00:14:59]}
{[%emt 00:00:29]} Bb7 {[%clk 00:15:24]} {[%emt 00:00:11]} 8. g3 {[%clk
00:14:36]} {[%emt 00:00:33]} d6 {[%clk 00:15:17]} {[%emt 00:00:16]} 9. Bg2
{[%clk 00:14:35]} {[%emt 00:00:11]} Nbd7 {[%clk 00:14:58]} {[%emt 00:00:30]} 10.
O-O {[%clk 00:14:32]} {[%emt 00:00:14]} O-O {[%clk 00:15:01]} {[%emt 00:00:07]}
11. Bb2 {[%clk 00:14:35]} {[%emt 00:00:07]} Be4 {[%clk 00:14:45]} {[%emt
00:00:25]} 12. Rfe1 {[%clk 00:13:00]} {[%emt 00:01:46]} Qc8 {[%clk 00:14:26]}
{[%emt 00:00:29]} 13. Qc3 {[%clk 00:12:09]} {[%emt 00:01:01]} Qb7 {[%clk
00:14:11]} {[%emt 00:00:24]} 14. Bf1 {[%clk 00:11:57]} {[%emt 00:00:22]} Rad8
{[%clk 00:10:12]} {[%emt 00:04:10]} 15. Nd2 {[%clk 00:12:05]} {[%emt 00:00:02]}
Bg6 {[%clk 00:10:04]} {[%emt 00:00:17]} 16. Bg2 {[%clk 00:11:45]} {[%emt
00:00:30]} Ne4 {[%clk 00:09:29]} {[%emt 00:00:45]} 17. Nxe4 {[%clk 00:11:27]}
{[%emt 00:00:29]} Bxe4 {[%clk 00:09:37]} {[%emt 00:00:02]} 18. f3 {[%clk
00:11:28]} {[%emt 00:00:09]} Bg6 {[%clk 00:09:14]} {[%emt 00:00:32]} 19. e4
{[%clk 00:11:30]} {[%emt 00:00:08]} e5 {[%clk 00:09:01]} {[%emt 00:00:24]} 20.
d5 {[%clk 00:10:54]} {[%emt 00:00:46]} f5 {[%clk 00:08:46]} {[%emt 00:00:24]}
21. Bh3 {[%clk 00:09:43]} {[%emt 00:01:21]} fxe4 {[%clk 00:08:37]} {[%emt
00:00:20]} 22. fxe4 {[%clk 00:09:37]} {[%emt 00:00:16]} Rf6 {[%clk 00:07:41]}
{[%emt 00:01:05]} 23. b4 {[%clk 00:08:55]} {[%emt 00:00:53]} axb4 {[%clk
00:06:19]} {[%emt 00:01:31]} 24. axb4 {[%clk 00:09:04]} {[%emt 00:00:02]} c5
{[%clk 00:05:58]} {[%emt 00:00:31]} 25. b5 {[%clk 00:08:57]} {[%emt 00:00:17]}
Rff8 {[%clk 00:04:29]} {[%emt 00:01:39]} 26. Bg2 {[%clk 00:03:41]} {[%emt
00:05:27]} Ra8 {[%clk 00:04:10]} {[%emt 00:00:28]} 27. Qe3 {[%clk 00:03:10]}
{[%emt 00:00:41]} Nf6 {[%clk 00:03:49]} {[%emt 00:00:32]} 28. h3 {[%clk
00:01:47]} {[%emt 00:01:32]} Rxa1 {[%clk 00:03:42]} {[%emt 00:00:16]} 29. Rxa1
{[%clk 00:01:55]} {[%emt 00:00:02]} Ra8 {[%clk 00:03:51]} {[%emt 00:00:02]} 30.
Ra3 {[%clk 00:00:24]} {[%emt 00:01:41]} Rxa3 {[%clk 00:03:40]} {[%emt
00:00:21]} 31. Qxa3 {[%clk 00:00:26]} {[%emt 00:00:08]} Bxe4 {[%clk 00:01:38]}
{[%emt 00:02:12]} 32. Bf1 {[%clk 00:00:34]} {[%emt 00:00:01]} Bf5 {[%clk
00:01:23]} {[%emt 00:00:26]} 33. Kh2 {[%clk 00:00:39]} {[%emt 00:00:05]} h6
{[%clk 00:01:01]} {[%emt 00:00:32]} 34. Bc1 {[%clk 00:00:43]} {[%emt 00:00:06]}
Kh7 {[%clk 00:01:04]} {[%emt 00:00:06]} 35. g4 {[%clk 00:00:22]} {[%emt
00:00:31]} Bc8 {[%clk 00:00:51]} {[%emt 00:00:23]} 36. g5 {[%clk 00:00:25]}
{[%emt 00:00:07]} hxg5 {[%clk 00:00:53]} {[%emt 00:00:08]} 37. Bxg5 {[%clk
00:00:33]} {[%emt 00:00:02]} Bf5 {[%clk 00:00:31]} {[%emt 00:00:32]} 38. Qg3
{[%clk 00:00:34]} {[%emt 00:00:08]} Qd7 {[%clk 00:00:34]} {[%emt 00:00:07]} 39.
Qh4+ {[%clk 00:00:35]} {[%emt 00:00:09]} Kg8 {[%clk 00:00:42]} {[%emt
00:00:02]} 40. Bxf6 {[%clk 00:00:38]} {[%emt 00:00:07]} gxf6 {[%clk 00:00:40]}
{[%emt 00:00:13]} 41. Qxf6 {[%clk 00:00:47]} {[%emt 00:00:01]} e4 {[%clk
00:00:38]} {[%emt 00:00:13]} 42. Be2 {[%clk 00:00:44]} {[%emt 00:00:13]} Qh7
{[%clk 00:00:18]} {[%emt 00:00:29]} 43. Qd8+ {[%clk 00:00:33]} {[%emt
00:00:21]} Kg7 {[%clk 00:00:23]} {[%emt 00:00:04]} 44. Qe7+ {[%clk 00:00:33]}
{[%emt 00:00:10]} Kg8 {[%clk 00:00:26]} {[%emt 00:00:07]} 45. Qe8+ {[%clk
00:00:36]} {[%emt 00:00:07]} Kg7 {[%clk 00:00:31]} {[%emt 00:00:05]} 46. Bh5
{[%clk 00:00:32]} {[%emt 00:00:14]} Kf6 {[%clk 00:00:24]} {[%emt 00:00:17]} 47.
Qd8+ {[%clk 00:00:24]} {[%emt 00:00:18]} Ke5 {[%clk 00:00:28]} {[%emt
00:00:07]} 48. Qe8+ {[%clk 00:00:17]} {[%emt 00:00:16]} Kd4 {[%clk 00:00:31]}
{[%emt 00:00:07]} 0-1

[Event "British Rapidplay Championship 2023"]
[Site "Mercure Bradford, Bankfield Hotel"]
[Date "2023.04.16"]
[Round "7.14"]
[White "Khoury, Theo"]
[Black "Hutchinson, Paul A"]
[Result "1-0"]
[TimeControl "15 minutes plus 10 seconds per move"]
[WhiteElo "1772"]
[BlackElo "2184"]

1. e4 {[%clk 00:15:18]} {[%emt 00:00:02]} d5 {[%clk 00:15:19]} {[%emt
00:00:02]} 2. exd5 {[%clk 00:15:26]} Qxd5 {[%clk 00:15:28]} {[%emt 00:00:01]} 3.
Nc3 {[%clk 00:15:35]} {[%emt 00:00:01]} Qa5 {[%clk 00:15:37]} {[%emt 00:00:01]}
4. d4 {[%clk 00:15:44]} {[%emt 00:00:02]} Nf6 {[%clk 00:15:45]} {[%emt
00:00:02]} 5. Nf3 {[%clk 00:15:52]} {[%emt 00:00:01]} c6 {[%clk 00:15:54]}
{[%emt 00:00:01]} 6. Bc4 {[%clk 00:15:59]} {[%emt 00:00:03]} Nbd7 {[%clk
00:15:44]} {[%emt 00:00:19]} 7. O-O {[%clk 00:15:52]} {[%emt 00:00:18]} e6
{[%clk 00:15:38]} {[%emt 00:00:17]} 8. Bd2 {[%clk 00:15:13]} {[%emt 00:00:48]}
Qc7 {[%clk 00:15:39]} {[%emt 00:00:10]} 9. Re1 {[%clk 00:15:06]} {[%emt
00:00:16]} Be7 {[%clk 00:15:46]} {[%emt 00:00:04]} 10. Qe2 {[%clk 00:15:00]}
{[%emt 00:00:15]} b5 {[%clk 00:15:11]} {[%emt 00:00:45]} 11. Bb3 {[%clk
00:14:26]} {[%emt 00:00:44]} a5 {[%clk 00:15:20]} {[%emt 00:00:02]} 12. a4
{[%clk 00:14:32]} {[%emt 00:00:04]} b4 {[%clk 00:15:28]} {[%emt 00:00:01]} 13.
Ne4 {[%clk 00:14:31]} {[%emt 00:00:11]} Nxe4 {[%clk 00:14:39]} {[%emt
00:00:59]} 14. Qxe4 {[%clk 00:14:38]} {[%emt 00:00:02]} Nf6 {[%clk 00:14:48]}
{[%emt 00:00:02]} 15. Qe5 {[%clk 00:13:35]} {[%emt 00:01:13]} Qxe5 {[%clk
00:14:28]} {[%emt 00:00:30]} 16. Nxe5 {[%clk 00:13:42]} {[%emt 00:00:03]} Bb7
{[%clk 00:14:28]} {[%emt 00:00:10]} 17. c4 {[%clk 00:13:02]} {[%emt 00:00:50]}
O-O {[%clk 00:14:06]} {[%emt 00:00:32]} 18. Bd1 {[%clk 00:12:43]} {[%emt
00:00:29]} Rfd8 {[%clk 00:13:26]} {[%emt 00:00:50]} 19. Bf3 {[%clk 00:12:02]}
{[%emt 00:00:51]} Rac8 {[%clk 00:12:58]} {[%emt 00:00:38]} 20. Be3 {[%clk
00:11:59]} {[%emt 00:00:13]} Nd7 {[%clk 00:13:05]} {[%emt 00:00:03]} 21. Nd3
{[%clk 00:11:08]} {[%emt 00:01:01]} Bf6 {[%clk 00:13:14]} {[%emt 00:00:02]} 22.
Rad1 {[%clk 00:11:07]} {[%emt 00:00:10]} Nb6 {[%clk 00:13:13]} {[%emt
00:00:11]} 23. Nc5 {[%clk 00:11:02]} {[%emt 00:00:15]} Ba8 {[%clk 00:13:14]}
{[%emt 00:00:09]} 24. b3 {[%clk 00:10:48]} {[%emt 00:00:24]} Nd7 {[%clk
00:13:17]} {[%emt 00:00:07]} 25. Ne4 {[%clk 00:10:08]} {[%emt 00:00:49]} Be7
{[%clk 00:13:22]} {[%emt 00:00:06]} 26. Bf4 {[%clk 00:08:08]} {[%emt 00:02:11]}
h6 {[%clk 00:13:24]} {[%emt 00:00:07]} 27. Bd6 {[%clk 00:08:01]} {[%emt
00:00:17]} Bf6 {[%clk 00:12:34]} {[%emt 00:01:00]} 28. Nxf6+ {[%clk 00:06:45]}
{[%emt 00:01:26]} Nxf6 {[%clk 00:12:42]} {[%emt 00:00:02]} 29. Be7 {[%clk
00:06:54]} {[%emt 00:00:02]} Rd7 {[%clk 00:12:50]} {[%emt 00:00:01]} 30. Bc5
{[%clk 00:06:28]} {[%emt 00:00:35]} Rb8 {[%clk 00:12:59]} {[%emt 00:00:02]} 31.
g4 {[%clk 00:06:08]} {[%emt 00:00:30]} Ne8 {[%clk 00:12:46]} {[%emt 00:00:23]}
32. h4 {[%clk 00:05:59]} {[%emt 00:00:18]} Nc7 {[%clk 00:12:51]} {[%emt
00:00:05]} 33. Ba7 {[%clk 00:05:42]} {[%emt 00:00:28]} Rc8 {[%clk 00:09:54]}
{[%emt 00:03:06]} 34. Bb6 {[%clk 00:05:48]} {[%emt 00:00:05]} Na6 {[%clk
00:10:03]} {[%emt 00:00:01]} 35. c5 {[%clk 00:05:24]} {[%emt 00:00:34]} Nc7
{[%clk 00:09:38]} {[%emt 00:00:35]} 36. Bxa5 {[%clk 00:05:25]} {[%emt
00:00:09]} Rb8 {[%clk 00:09:08]} {[%emt 00:00:41]} 37. Bxc7 {[%clk 00:04:16]}
{[%emt 00:01:18]} Rxc7 {[%clk 00:09:16]} {[%emt 00:00:02]} 38. a5 {[%clk
00:03:59]} {[%emt 00:00:27]} Rd7 {[%clk 00:08:49]} {[%emt 00:00:37]} 39. a6
{[%clk 00:03:21]} {[%emt 00:00:48]} Rbd8 {[%clk 00:08:56]} {[%emt 00:00:04]} 40.
Kg2 {[%clk 00:02:43]} {[%emt 00:00:48]} Rxd4 {[%clk 00:09:00]} {[%emt
00:00:06]} 41. Rxd4 {[%clk 00:02:51]} {[%emt 00:00:01]} Rxd4 {[%clk 00:09:08]}
{[%emt 00:00:02]} 42. Rd1 {[%clk 00:03:00]} {[%emt 00:00:01]} Rxd1 {[%clk
00:08:27]} {[%emt 00:00:51]} 43. Bxd1 {[%clk 00:03:08]} {[%emt 00:00:02]} Kf8
{[%clk 00:08:36]} {[%emt 00:00:01]} 44. Kf3 {[%clk 00:03:11]} {[%emt 00:00:07]}
Ke7 {[%clk 00:08:45]} {[%emt 00:00:02]} 45. Ke4 {[%clk 00:03:19]} {[%emt
00:00:01]} h5 {[%clk 00:08:12]} {[%emt 00:00:43]} 46. g5 {[%clk 00:03:07]}
{[%emt 00:00:22]} g6 {[%clk 00:07:26]} {[%emt 00:00:57]} 47. Ke5 {[%clk
00:03:14]} {[%emt 00:00:02]} Kd7 {[%clk 00:07:29]} {[%emt 00:00:08]} 48. Kf6
{[%clk 00:03:02]} {[%emt 00:00:21]} Ke8 {[%clk 00:07:38]} {[%emt 00:00:01]} 49.
f4 {[%clk 00:03:10]} {[%emt 00:00:03]} Kf8 {[%clk 00:07:42]} {[%emt 00:00:05]}
50. Be2 {[%clk 00:02:44]} {[%emt 00:00:36]} Ke8 {[%clk 00:07:49]} {[%emt
00:00:03]} 51. Bf1 {[%clk 00:02:50]} {[%emt 00:00:04]} Kf8 {[%clk 00:07:57]}
{[%emt 00:00:02]} 52. Bc4 {[%clk 00:02:59]} {[%emt 00:00:01]} Ke8 {[%clk
00:08:06]} {[%emt 00:00:02]} 53. Bxe6 {[%clk 00:03:04]} {[%emt 00:00:04]} fxe6
{[%clk 00:08:14]} {[%emt 00:00:02]} 54. Kxe6 {[%clk 00:03:13]} {[%emt
00:00:02]} Kd8 {[%clk 00:08:04]} {[%emt 00:00:20]} 55. Kf6 {[%clk 00:03:21]}
{[%emt 00:00:01]} Kd7 {[%clk 00:08:12]} {[%emt 00:00:02]} 56. Kxg6 {[%clk
00:03:29]} {[%emt 00:00:02]} Ke6 {[%clk 00:08:22]} 57. f5+ {[%clk 00:03:37]}
{[%emt 00:00:01]} Kd5 {[%clk 00:08:31]} 58. f6 {[%clk 00:03:46]} {[%emt
00:00:01]} Kxc5 {[%clk 00:08:38]} {[%emt 00:00:03]} 59. f7 {[%clk 00:03:55]}
Kb6 {[%clk 00:08:42]} {[%emt 00:00:07]} 60. f8=Q {[%clk 00:04:00]} {[%emt
00:00:05]} 1-0

[Event "British Rapidplay Championship 2023"]
[Site "Mercure Bradford, Bankfield Hotel"]
[Date "2023.04.16"]
[Round "7.15"]
[White "Cuaresma, Gerald"]
[Black "Quilter, Thomas A"]
[Result "0-1"]
[TimeControl "15 minutes plus 10 seconds per move"]
[WhiteElo "1741"]
[BlackElo "2134"]

1. d4 {[%clk 00:15:17]} {[%emt 00:00:02]} Nf6 {[%clk 00:15:18]} {[%emt
00:00:02]} 2. Bg5 {[%clk 00:15:25]} {[%emt 00:00:02]} Ne4 {[%clk 00:15:21]}
{[%emt 00:00:08]} 3. h4 {[%clk 00:15:31]} {[%emt 00:00:04]} d5 {[%clk
00:15:29]} {[%emt 00:00:02]} 4. Nd2 {[%clk 00:15:37]} {[%emt 00:00:04]} c5
{[%clk 00:15:38]} {[%emt 00:00:01]} 5. Nxe4 {[%clk 00:14:59]} {[%emt 00:00:48]}
dxe4 {[%clk 00:15:46]} {[%emt 00:00:01]} 6. dxc5 {[%clk 00:15:06]} {[%emt
00:00:03]} Qa5+ {[%clk 00:15:51]} {[%emt 00:00:05]} 7. c3 {[%clk 00:15:15]}
Qxc5 {[%clk 00:15:51]} {[%emt 00:00:10]} 8. Qa4+ {[%clk 00:15:23]} {[%emt
00:00:03]} Qc6 {[%clk 00:14:45]} {[%emt 00:01:16]} 9. Qd4 {[%clk 00:14:59]}
{[%emt 00:00:34]} f6 {[%clk 00:14:10]} {[%emt 00:00:44]} 10. Be3 {[%clk
00:14:52]} {[%emt 00:00:17]} e5 {[%clk 00:14:06]} {[%emt 00:00:13]} 11. Qd2
{[%clk 00:15:01]} {[%emt 00:00:02]} Be6 {[%clk 00:12:21]} {[%emt 00:01:56]} 12.
f3 {[%clk 00:12:56]} {[%emt 00:02:14]} Nd7 {[%clk 00:10:37]} {[%emt 00:01:55]}
13. Qc2 {[%clk 00:11:44]} {[%emt 00:01:22]} Bc5 {[%clk 00:08:25]} {[%emt
00:02:22]} 14. Bxc5 {[%clk 00:07:18]} {[%emt 00:04:35]} Nxc5 {[%clk 00:08:00]}
{[%emt 00:00:35]} 15. g4 {[%clk 00:04:14]} {[%emt 00:03:15]} Rd8 {[%clk
00:06:02]} {[%emt 00:02:08]} 16. b4 {[%clk 00:02:43]} {[%emt 00:01:41]} Na4
{[%clk 00:05:21]} {[%emt 00:00:51]} 17. Rc1 {[%clk 00:02:52]} {[%emt 00:00:01]}
e3 {[%clk 00:04:17]} {[%emt 00:01:14]} 18. b5 {[%clk 00:01:42]} {[%emt
00:01:20]} Qc4 {[%clk 00:03:13]} {[%emt 00:01:13]} 0-1